[Event "Late-Titled-Tuesday-Blitz-March-26-2024"]
[Site "Chess.com"]
[Date "2024.03.26"]
[Round "9"]
[White "carokannlover213"]
[Black "Meri-Arabidze"]
[Result "1/2-1/2"]
[WhiteElo "2831"]
[BlackElo "2696"]
[TimeControl "180+1"]
[EndTime "15:44:56 PDT"]
[Termination "Game drawn by repetition"]

1. e4 {[%clk 0:03:00.9]} 1... e5 {[%clk 0:03:00]} 2. Nf3 {[%clk 0:02:59.7]} 2...
Nc6 {[%clk 0:03:00.1]} 3. Bc4 {[%clk 0:03:00.1]} 3... Nf6 {[%clk 0:03:00.2]} 4.
d3 {[%clk 0:03:00.7]} 4... h6 {[%clk 0:03:00.1]} 5. O-O {[%clk 0:03:00.8]} 5...
Be7 {[%clk 0:03:00]} 6. c3 {[%clk 0:03:01.5]} 6... O-O {[%clk 0:02:59]} 7. Re1
{[%clk 0:03:00.7]} 7... d6 {[%clk 0:02:58.7]} 8. a4 {[%clk 0:02:57.9]} 8... a5
{[%clk 0:02:58.3]} 9. Nbd2 {[%clk 0:02:55.2]} 9... Nh7 {[%clk 0:02:57]} 10. Nf1
{[%clk 0:02:53.9]} 10... Ng5 {[%clk 0:02:56.3]} 11. Nxg5 {[%clk 0:02:42.9]}
11... Bxg5 {[%clk 0:02:57.2]} 12. Ne3 {[%clk 0:02:43.5]} 12... Kh8 {[%clk
0:02:52.4]} 13. Bd2 {[%clk 0:02:39.4]} 13... f5 {[%clk 0:02:44.8]} 14. exf5
{[%clk 0:02:34.8]} 14... Bxf5 {[%clk 0:02:43]} 15. Nxf5 {[%clk 0:02:20.1]} 15...
Rxf5 {[%clk 0:02:43.9]} 16. Be6 {[%clk 0:02:18.3]} 16... Rf8 {[%clk 0:02:30.8]}
17. Bd5 {[%clk 0:02:17.4]} 17... Rb8 {[%clk 0:02:19.3]} 18. Bxc6 {[%clk
0:01:51.6]} 18... bxc6 {[%clk 0:02:19.1]} 19. b4 {[%clk 0:01:52.3]} 19... Bxd2
{[%clk 0:02:09.4]} 20. Qxd2 {[%clk 0:01:52]} 20... Ra8 {[%clk 0:02:07.8]} 21.
bxa5 {[%clk 0:01:47.1]} 21... Rxa5 {[%clk 0:02:06.3]} 22. c4 {[%clk 0:01:47.2]}
22... Qa8 {[%clk 0:02:04.8]} 23. Qc2 {[%clk 0:01:43.2]} 23... Qa7 {[%clk
0:02:03.8]} 24. Ra2 {[%clk 0:01:34.8]} 24... Ra8 {[%clk 0:01:57.7]} 25. Rea1
{[%clk 0:01:28.8]} 25... Qd4 {[%clk 0:01:57.5]} 26. Qe2 {[%clk 0:01:24.6]} 26...
Rxa4 {[%clk 0:01:43.7]} 27. g3 {[%clk 0:00:44]} 27... Rxa2 {[%clk 0:01:39.4]}
28. Rxa2 {[%clk 0:00:44.9]} 28... Rxa2 {[%clk 0:01:38.8]} 29. Qxa2 {[%clk
0:00:45.8]} 29... Kh7 {[%clk 0:01:25.8]} 30. Qa8 {[%clk 0:00:40]} 30... e4
{[%clk 0:01:26]} 31. dxe4 {[%clk 0:00:38.3]} 31... Qxe4 {[%clk 0:01:20.3]} 32.
Qc8 {[%clk 0:00:26.9]} 32... Qxc4 {[%clk 0:01:09]} 33. Qf5+ {[%clk 0:00:26.6]}
33... g6 {[%clk 0:01:09]} 34. Qd7+ {[%clk 0:00:26.3]} 34... Kg8 {[%clk
0:01:07.2]} 35. Qd8+ {[%clk 0:00:17.3]} 35... Kf7 {[%clk 0:00:59]} 36. Qxc7+
{[%clk 0:00:17.4]} 36... Ke6 {[%clk 0:00:59.3]} 37. Qc8+ {[%clk 0:00:18.1]}
37... Kd5 {[%clk 0:00:42.6]} 38. Qg8+ {[%clk 0:00:18.2]} 38... Kc5 {[%clk
0:00:43.1]} 39. Qxg6 {[%clk 0:00:17.7]} 39... Qc1+ {[%clk 0:00:42.7]} 40. Kg2
{[%clk 0:00:16.8]} 40... d5 {[%clk 0:00:43.4]} 41. Qf5 {[%clk 0:00:13.6]} 41...
Kc4 {[%clk 0:00:36.8]} 42. Qe6 {[%clk 0:00:10.7]} 42... c5 {[%clk 0:00:34.1]}
43. Qa6+ {[%clk 0:00:09]} 43... Kd4 {[%clk 0:00:32.9]} 44. Qf6+ {[%clk
0:00:09.3]} 44... Kc4 {[%clk 0:00:33]} 45. Qa6+ {[%clk 0:00:09.3]} 45... Kc3
{[%clk 0:00:26.8]} 46. Qd6 {[%clk 0:00:09]} 46... Kd4 {[%clk 0:00:13.3]} 47.
Qf6+ {[%clk 0:00:07.5]} 47... Kc4 {[%clk 0:00:13.7]} 48. Qa6+ {[%clk 0:00:07.7]}
1/2-1/2

[Event "Late-Titled-Tuesday-Blitz-March-26-2024"]
[Site "Chess.com"]
[Date "2024.03.26"]
[Round "9"]
[White "Statham_01"]
[Black "Adar_07"]
[Result "0-1"]
[WhiteElo "2619"]
[BlackElo "2780"]
[TimeControl "180+1"]
[EndTime "15:44:58 PDT"]
[Termination "Adar_07 won on time"]

1. e4 {[%clk 0:03:00.9]} 1... e6 {[%clk 0:02:58.7]} 2. d4 {[%clk 0:03:00.3]}
2... d5 {[%clk 0:02:59.6]} 3. Nc3 {[%clk 0:02:59.7]} 3... Nf6 {[%clk 0:02:58.5]}
4. e5 {[%clk 0:03:00.1]} 4... Nfd7 {[%clk 0:02:59.2]} 5. f4 {[%clk 0:03:00.5]}
5... c5 {[%clk 0:03:00.1]} 6. Nf3 {[%clk 0:03:01.4]} 6... Nc6 {[%clk 0:03:01]}
7. Be3 {[%clk 0:03:01.7]} 7... Qb6 {[%clk 0:03:01]} 8. Na4 {[%clk 0:02:58.2]}
8... Qa5+ {[%clk 0:02:57.6]} 9. c3 {[%clk 0:02:58]} 9... cxd4 {[%clk 0:02:49.7]}
10. b4 {[%clk 0:02:54.2]} 10... Qc7 {[%clk 0:02:39.2]} 11. Nxd4 {[%clk
0:02:45.3]} 11... a5 {[%clk 0:02:33.5]} 12. Nb5 {[%clk 0:02:24.6]} 12... Qd8
{[%clk 0:02:32.1]} 13. a3 {[%clk 0:02:15.7]} 13... Be7 {[%clk 0:02:17.8]} 14.
Bd3 {[%clk 0:02:13]} 14... O-O {[%clk 0:02:12.7]} 15. h4 {[%clk 0:02:08.6]}
15... f5 {[%clk 0:02:07.2]} 16. exf6 {[%clk 0:01:53.1]} 16... Nxf6 {[%clk
0:02:03.6]} 17. Nd4 {[%clk 0:01:28.9]} 17... e5 {[%clk 0:02:00.1]} 18. Nxc6
{[%clk 0:01:20]} 18... bxc6 {[%clk 0:02:01]} 19. Nb6 {[%clk 0:00:41.8]} 19...
exf4 {[%clk 0:01:59.7]} 20. Bd4 {[%clk 0:00:33.2]} 20... Bg4 {[%clk 0:01:38]}
21. Qc2 {[%clk 0:00:28.7]} 21... Rb8 {[%clk 0:01:30.7]} 22. bxa5 {[%clk
0:00:29.2]} 22... c5 {[%clk 0:01:27.8]} 23. Bf2 {[%clk 0:00:27.8]} 23... c4
{[%clk 0:01:21.6]} 24. Bf5 {[%clk 0:00:22.2]} 24... f3 {[%clk 0:00:35.9]} 25. g3
{[%clk 0:00:19.7]} 25... Qc7 {[%clk 0:00:24]} 26. O-O {[%clk 0:00:18.6]} 26...
Bc5 {[%clk 0:00:23.2]} 27. Kh2 {[%clk 0:00:12.8]} 27... Bxf2 {[%clk 0:00:18.3]}
28. Rxf2 {[%clk 0:00:13.7]} 28... Kh8 {[%clk 0:00:15.9]} 29. Raf1 {[%clk
0:00:09.5]} 29... Bxf5 {[%clk 0:00:15.5]} 30. Qxf5 {[%clk 0:00:10.2]} 30... Ne4
{[%clk 0:00:16.1]} 31. Qg4 {[%clk 0:00:02.7]} 31... Nxf2 {[%clk 0:00:16.3]} 32.
Rxf2 {[%clk 0:00:03.6]} 32... Qf7 {[%clk 0:00:13.3]} 33. Qd4 {[%clk 0:00:02.3]}
33... Rbe8 {[%clk 0:00:12]} 34. a6 {[%clk 0:00:02.3]} 34... Re2 {[%clk
0:00:11.6]} 35. Na4 {[%clk 0:00:02.2]} 35... Qe7 {[%clk 0:00:08.3]} 36. a7
{[%clk 0:00:02.1]} 36... Rxf2+ {[%clk 0:00:08.1]} 37. Qxf2 {[%clk 0:00:03]}
37... Qe2 {[%clk 0:00:07.8]} 38. Kg1 {[%clk 0:00:03.7]} 38... Qd1+ {[%clk
0:00:07.1]} 39. Kh2 {[%clk 0:00:03.7]} 39... Qxa4 {[%clk 0:00:07.8]} 40. Qxf3
{[%clk 0:00:02.4]} 40... Rxf3 {[%clk 0:00:07.3]} 0-1

[Event "Late-Titled-Tuesday-Blitz-March-26-2024"]
[Site "Chess.com"]
[Date "2024.03.26"]
[Round "9"]
[White "ploxoi"]
[Black "rikchessmx"]
[Result "1-0"]
[WhiteElo "2427"]
[BlackElo "2296"]
[TimeControl "180+1"]
[EndTime "15:44:58 PDT"]
[Termination "ploxoi won on time"]

1. d4 {[%clk 0:03:00.9]} 1... Nf6 {[%clk 0:02:59.6]} 2. c4 {[%clk 0:03:01.1]}
2... g6 {[%clk 0:02:59.6]} 3. g3 {[%clk 0:03:01.7]} 3... d5 {[%clk 0:03:00]} 4.
Bg2 {[%clk 0:03:02.4]} 4... dxc4 {[%clk 0:03:00.2]} 5. Nf3 {[%clk 0:03:02.9]}
5... Bg7 {[%clk 0:03:00.5]} 6. Ne5 {[%clk 0:03:03.5]} 6... O-O {[%clk 0:03:00]}
7. Nxc4 {[%clk 0:03:04.1]} 7... Nc6 {[%clk 0:02:59.8]} 8. e3 {[%clk 0:02:58.6]}
8... Be6 {[%clk 0:02:59.3]} 9. Nbd2 {[%clk 0:02:56.9]} 9... Bd5 {[%clk
0:02:58.3]} 10. O-O {[%clk 0:02:56.5]} 10... Bxg2 {[%clk 0:02:57.9]} 11. Kxg2
{[%clk 0:02:57.4]} 11... b5 {[%clk 0:02:56.9]} 12. Na3 {[%clk 0:02:56.6]} 12...
a6 {[%clk 0:02:56.1]} 13. Qf3 {[%clk 0:02:54.1]} 13... Qd7 {[%clk 0:02:50.6]}
14. Nb3 {[%clk 0:02:50]} 14... e5 {[%clk 0:02:46.4]} 15. Nc5 {[%clk 0:02:43.2]}
15... Qe8 {[%clk 0:02:46]} 16. d5 {[%clk 0:02:36.5]} 16... e4 {[%clk 0:02:40.4]}
17. Qf4 {[%clk 0:02:26.3]} 17... Nxd5 {[%clk 0:02:34.6]} 18. Qxe4 {[%clk
0:02:26.5]} 18... Qxe4+ {[%clk 0:02:29.3]} 19. Nxe4 {[%clk 0:02:26.5]} 19...
Ncb4 {[%clk 0:02:29.3]} 20. Nc5 {[%clk 0:02:18.5]} 20... Rfe8 {[%clk 0:02:17.7]}
21. Rb1 {[%clk 0:02:14.9]} 21... f5 {[%clk 0:02:14.7]} 22. Bd2 {[%clk
0:02:11.4]} 22... Bf8 {[%clk 0:02:14.2]} 23. Nb3 {[%clk 0:02:05.9]} 23... Nd3
{[%clk 0:02:08.9]} 24. Rfd1 {[%clk 0:02:00.8]} 24... c5 {[%clk 0:02:03.2]} 25.
Nc2 {[%clk 0:01:45.5]} 25... c4 {[%clk 0:02:02.7]} 26. Nbd4 {[%clk 0:01:45.1]}
26... Rac8 {[%clk 0:01:58.1]} 27. a3 {[%clk 0:01:39.9]} 27... Nc5 {[%clk
0:01:52.9]} 28. Bb4 {[%clk 0:01:33.6]} 28... Nxb4 {[%clk 0:01:50.9]} 29. Nxb4
{[%clk 0:01:34.5]} 29... Ra8 {[%clk 0:01:41.4]} 30. Nd5 {[%clk 0:01:33]} 30...
Reb8 {[%clk 0:01:15.6]} 31. Nc6 {[%clk 0:01:23.7]} 31... Rb7 {[%clk 0:01:11]}
32. Na5 {[%clk 0:01:08.9]} 32... Rf7 {[%clk 0:01:01.3]} 33. Nb4 {[%clk
0:00:50.7]} 33... Rc8 {[%clk 0:00:49.4]} 34. Rd5 {[%clk 0:00:48.8]} 34... Rd7
{[%clk 0:00:39.3]} 35. Rbd1 {[%clk 0:00:47.1]} 35... Rxd5 {[%clk 0:00:39]} 36.
Rxd5 {[%clk 0:00:46.5]} 36... Ra8 {[%clk 0:00:30.3]} 37. Nbc6 {[%clk 0:00:38.6]}
37... Kf7 {[%clk 0:00:27.5]} 38. Nd4 {[%clk 0:00:37.6]} 38... Nd3 {[%clk
0:00:13.4]} 39. Rd7+ {[%clk 0:00:36]} 39... Kg8 {[%clk 0:00:11.5]} 40. b3 {[%clk
0:00:21.3]} 40... Bxa3 {[%clk 0:00:08]} 41. bxc4 {[%clk 0:00:20.7]} 41... b4
{[%clk 0:00:08.4]} 42. Ne6 {[%clk 0:00:17.1]} 42... Ne5 {[%clk 0:00:05.6]} 43.
Rg7+ {[%clk 0:00:16.5]} 43... Kh8 {[%clk 0:00:05.5]} 44. Rb7 {[%clk 0:00:16.2]}
44... Nxc4 {[%clk 0:00:05.1]} 45. Nxc4 {[%clk 0:00:15.6]} 45... a5 {[%clk
0:00:04.7]} 46. Ne5 {[%clk 0:00:11.5]} 1-0

[Event "Late-Titled-Tuesday-Blitz-March-26-2024"]
[Site "Chess.com"]
[Date "2024.03.26"]
[Round "9"]
[White "Rud_Makarian"]
[Black "ContrVersia"]
[Result "1-0"]
[WhiteElo "3100"]
[BlackElo "2911"]
[TimeControl "180+1"]
[EndTime "15:44:59 PDT"]
[Termination "Rud_Makarian won on time"]

1. Nf3 {[%clk 0:03:00.9]} 1... d5 {[%clk 0:02:59.8]} 2. c4 {[%clk 0:03:01.2]}
2... d4 {[%clk 0:02:59.8]} 3. b4 {[%clk 0:03:01.5]} 3... c5 {[%clk 0:02:58.6]}
4. b5 {[%clk 0:03:01.6]} 4... f6 {[%clk 0:02:57.4]} 5. g3 {[%clk 0:03:00.7]}
5... e5 {[%clk 0:02:57.5]} 6. Bg2 {[%clk 0:03:01]} 6... Bd6 {[%clk 0:02:51.5]}
7. O-O {[%clk 0:02:58.6]} 7... Ne7 {[%clk 0:02:50.8]} 8. d3 {[%clk 0:02:57.1]}
8... O-O {[%clk 0:02:50.7]} 9. a4 {[%clk 0:02:57.2]} 9... Qc7 {[%clk 0:02:48]}
10. a5 {[%clk 0:02:56.6]} 10... a6 {[%clk 0:02:44.9]} 11. b6 {[%clk 0:02:53.4]}
11... Qd8 {[%clk 0:02:44.3]} 12. Nbd2 {[%clk 0:02:46.5]} 12... Nbc6 {[%clk
0:02:37]} 13. Ne4 {[%clk 0:02:42.2]} 13... f5 {[%clk 0:02:36.8]} 14. Nxd6 {[%clk
0:02:40]} 14... Qxd6 {[%clk 0:02:37.7]} 15. Nd2 {[%clk 0:02:37.5]} 15... Be6
{[%clk 0:02:06.5]} 16. Nb3 {[%clk 0:02:36.6]} 16... Rac8 {[%clk 0:02:06.7]} 17.
Ba3 {[%clk 0:02:31.2]} 17... Nd8 {[%clk 0:02:06.8]} 18. e3 {[%clk 0:02:27.4]}
18... dxe3 {[%clk 0:02:04.8]} 19. fxe3 {[%clk 0:02:28.3]} 19... f4 {[%clk
0:02:00.9]} 20. gxf4 {[%clk 0:01:59]} 20... exf4 {[%clk 0:02:01]} 21. d4 {[%clk
0:01:58.9]} 21... Bxc4 {[%clk 0:02:00.5]} 22. Bxc5 {[%clk 0:01:57.4]} 22... Qe6
{[%clk 0:02:00.1]} 23. d5 {[%clk 0:01:09.4]} 23... Nxd5 {[%clk 0:01:54.6]} 24.
Bxf8 {[%clk 0:01:04.8]} 24... Nxe3 {[%clk 0:01:35.8]} 25. Qd4 {[%clk 0:00:59.3]}
25... Qg6 {[%clk 0:01:24.5]} 26. Rf2 {[%clk 0:00:40.5]} 26... Ne6 {[%clk
0:01:23.4]} 27. Qe4 {[%clk 0:00:32.8]} 27... Rxf8 {[%clk 0:01:12.1]} 28. Qxg6
{[%clk 0:00:30.4]} 28... hxg6 {[%clk 0:01:13]} 29. Nd2 {[%clk 0:00:22.3]} 29...
Bd5 {[%clk 0:01:09.5]} 30. Bxd5 {[%clk 0:00:21.5]} 30... Nxd5 {[%clk 0:01:10.4]}
31. Nc4 {[%clk 0:00:20]} 31... Ng5 {[%clk 0:00:56.2]} 32. Kf1 {[%clk 0:00:20.1]}
32... Ne4 {[%clk 0:00:47.5]} 33. Re2 {[%clk 0:00:17.5]} 33... Ndc3 {[%clk
0:00:47.7]} 34. Rc2 {[%clk 0:00:17.7]} 34... Rd8 {[%clk 0:00:42]} 35. Rac1
{[%clk 0:00:14.8]} 35... Rd3 {[%clk 0:00:31.4]} 36. Ne5 {[%clk 0:00:12.1]} 36...
Rh3 {[%clk 0:00:31.1]} 37. Kg2 {[%clk 0:00:10.4]} 37... Re3 {[%clk 0:00:31.3]}
38. Ng4 {[%clk 0:00:08.4]} 38... f3+ {[%clk 0:00:28.9]} 39. Kf1 {[%clk 0:00:08]}
39... Rd3 {[%clk 0:00:26.5]} 40. Nf2 {[%clk 0:00:08.3]} 40... Re3 {[%clk
0:00:20.6]} 41. Nxe4 {[%clk 0:00:08.3]} 41... Nxe4 {[%clk 0:00:21.5]} 42. Re1
{[%clk 0:00:08.8]} 42... Rxe1+ {[%clk 0:00:03.1]} 43. Kxe1 {[%clk 0:00:09.7]}
43... g5 {[%clk 0:00:02.3]} 44. Rc7 {[%clk 0:00:09.4]} 44... g4 {[%clk 0:00:01]}
45. Rxb7 {[%clk 0:00:09.4]} 1-0

[Event "Late-Titled-Tuesday-Blitz-March-26-2024"]
[Site "Chess.com"]
[Date "2024.03.26"]
[Round "9"]
[White "Durarbayli"]
[Black "Gravity_Chess"]
[Result "1-0"]
[WhiteElo "2945"]
[BlackElo "2830"]
[TimeControl "180+1"]
[EndTime "15:44:59 PDT"]
[Termination "Durarbayli won by resignation"]

1. e4 {[%clk 0:03:00.9]} 1... c5 {[%clk 0:03:00.1]} 2. Nf3 {[%clk 0:03:00.8]}
2... e6 {[%clk 0:03:00.7]} 3. d4 {[%clk 0:03:01.1]} 3... cxd4 {[%clk 0:03:01.6]}
4. Nxd4 {[%clk 0:03:01.4]} 4... Nf6 {[%clk 0:03:02.3]} 5. Nc3 {[%clk 0:03:01.8]}
5... Nc6 {[%clk 0:03:03]} 6. Nxc6 {[%clk 0:03:02.2]} 6... bxc6 {[%clk
0:03:03.9]} 7. e5 {[%clk 0:03:02.5]} 7... Nd5 {[%clk 0:03:04.7]} 8. Ne4 {[%clk
0:03:02.9]} 8... Bb7 {[%clk 0:03:05.5]} 9. Nd6+ {[%clk 0:03:03.1]} 9... Bxd6
{[%clk 0:03:05.4]} 10. exd6 {[%clk 0:03:04]} 10... c5 {[%clk 0:02:55]} 11. c4
{[%clk 0:03:02.7]} 11... Nb4 {[%clk 0:02:45.7]} 12. a3 {[%clk 0:02:55.4]} 12...
Nc6 {[%clk 0:02:45.4]} 13. Be3 {[%clk 0:02:55.9]} 13... Qf6 {[%clk 0:02:45.8]}
14. Qd2 {[%clk 0:02:53.6]} 14... O-O {[%clk 0:02:10.9]} 15. Bxc5 {[%clk
0:02:32.6]} 15... Rab8 {[%clk 0:02:11.1]} 16. Rd1 {[%clk 0:02:19.2]} 16... a5
{[%clk 0:02:03.9]} 17. Be2 {[%clk 0:02:04.9]} 17... Rfc8 {[%clk 0:01:45.6]} 18.
O-O {[%clk 0:01:45]} 18... Ne5 {[%clk 0:01:37.4]} 19. b4 {[%clk 0:01:40.7]}
19... axb4 {[%clk 0:01:31.7]} 20. axb4 {[%clk 0:01:41.6]} 20... Ng6 {[%clk
0:00:36.2]} 21. Be3 {[%clk 0:01:29.5]} 21... Nh4 {[%clk 0:00:16.7]} 22. f3
{[%clk 0:01:29.6]} 22... Nf5 {[%clk 0:00:17]} 23. Bf2 {[%clk 0:01:21.2]} 23...
Ra8 {[%clk 0:00:17.6]} 24. c5 {[%clk 0:01:17.2]} 24... h5 {[%clk 0:00:18]} 25.
b5 {[%clk 0:01:09.7]} 25... h4 {[%clk 0:00:16.9]} 26. Rc1 {[%clk 0:01:09.6]}
26... Bd5 {[%clk 0:00:16.7]} 27. Rfd1 {[%clk 0:01:00]} 27... h3 {[%clk
0:00:16.9]} 28. g3 {[%clk 0:00:56.8]} 28... Ra2 {[%clk 0:00:17]} 29. Rc2 {[%clk
0:00:56.6]} 29... Rxc2 {[%clk 0:00:16]} 30. Qxc2 {[%clk 0:00:57.5]} 30... Nxd6
{[%clk 0:00:16.6]} 31. Bd4 {[%clk 0:00:47.7]} 31... e5 {[%clk 0:00:16.6]} 32.
Bb2 {[%clk 0:00:29.2]} 32... Ba8 {[%clk 0:00:15.7]} 33. Qd3 {[%clk 0:00:23.3]}
33... Nb7 {[%clk 0:00:12]} 34. Qxd7 {[%clk 0:00:15.1]} 34... Rd8 {[%clk
0:00:09.6]} 35. c6 {[%clk 0:00:10.6]} 35... Rxd7 {[%clk 0:00:09.3]} 36. Rxd7
{[%clk 0:00:11.4]} 36... Qf5 {[%clk 0:00:04.9]} 37. Kf2 {[%clk 0:00:10.5]} 37...
Qc2 {[%clk 0:00:04.6]} 38. Bxe5 {[%clk 0:00:10.8]} 38... Qc5+ {[%clk 0:00:04.4]}
39. Bd4 {[%clk 0:00:11.3]} 39... Qc2 {[%clk 0:00:04.1]} 40. cxb7 {[%clk
0:00:11.2]} 40... Bxb7 {[%clk 0:00:04.5]} 41. Rxb7 {[%clk 0:00:12.1]} 41... Qd2
{[%clk 0:00:05.2]} 42. Rd7 {[%clk 0:00:12.2]} 42... Qc1 {[%clk 0:00:05.2]} 43.
b6 {[%clk 0:00:12.1]} 43... Qh1 {[%clk 0:00:05.8]} 44. b7 {[%clk 0:00:12.4]}
44... Qxh2+ {[%clk 0:00:06.2]} 45. Ke3 {[%clk 0:00:12.9]} 45... Qg1+ {[%clk
0:00:06.9]} 46. Kf4 {[%clk 0:00:12.6]} 46... Qc1+ {[%clk 0:00:07.6]} 47. Kg4
{[%clk 0:00:11.5]} 47... h2 {[%clk 0:00:06.5]} 48. b8=Q+ {[%clk 0:00:11.1]}
48... Kh7 {[%clk 0:00:07]} 49. Bd3+ {[%clk 0:00:11.7]} 1-0

[Event "Late-Titled-Tuesday-Blitz-March-26-2024"]
[Site "Chess.com"]
[Date "2024.03.26"]
[Round "9"]
[White "Fh2411"]
[Black "omeed_87"]
[Result "1-0"]
[WhiteElo "2585"]
[BlackElo "2434"]
[TimeControl "180+1"]
[EndTime "15:45:00 PDT"]
[Termination "Fh2411 won by checkmate"]

1. d4 {[%clk 0:03:00.9]} 1... f5 {[%clk 0:02:59.3]} 2. Bf4 {[%clk 0:02:58.7]}
2... Nf6 {[%clk 0:02:58.5]} 3. e3 {[%clk 0:02:59]} 3... d5 {[%clk 0:02:56.5]} 4.
Nf3 {[%clk 0:02:54.5]} 4... e6 {[%clk 0:02:56.6]} 5. Be2 {[%clk 0:02:53.7]} 5...
Bd6 {[%clk 0:02:56.6]} 6. O-O {[%clk 0:02:54.4]} 6... O-O {[%clk 0:02:55.2]} 7.
c4 {[%clk 0:02:54.9]} 7... c6 {[%clk 0:02:54.5]} 8. Nc3 {[%clk 0:02:52.6]} 8...
Qe7 {[%clk 0:02:50.5]} 9. c5 {[%clk 0:02:52]} 9... Bxf4 {[%clk 0:02:44.5]} 10.
exf4 {[%clk 0:02:52.9]} 10... Ne4 {[%clk 0:02:44.6]} 11. Qc2 {[%clk 0:02:49.8]}
11... Nd7 {[%clk 0:02:41.9]} 12. b4 {[%clk 0:02:49]} 12... h6 {[%clk 0:02:38.8]}
13. b5 {[%clk 0:02:32.7]} 13... g5 {[%clk 0:02:30.6]} 14. Ne5 {[%clk 0:02:25.5]}
14... Nxe5 {[%clk 0:02:27.3]} 15. fxe5 {[%clk 0:02:26]} 15... Nxc3 {[%clk
0:02:12]} 16. Qxc3 {[%clk 0:02:25.2]} 16... Bd7 {[%clk 0:02:12.1]} 17. a4 {[%clk
0:02:24.2]} 17... Kg7 {[%clk 0:02:02.5]} 18. Rab1 {[%clk 0:02:21.3]} 18... Rf7
{[%clk 0:01:51.5]} 19. a5 {[%clk 0:02:20.5]} 19... f4 {[%clk 0:01:43.2]} 20. f3
{[%clk 0:02:16.8]} 20... h5 {[%clk 0:01:42.7]} 21. a6 {[%clk 0:02:16.3]} 21...
bxa6 {[%clk 0:01:42.3]} 22. bxa6 {[%clk 0:02:02.6]} 22... Bc8 {[%clk 0:01:36.3]}
23. h3 {[%clk 0:01:53.4]} 23... Kh6 {[%clk 0:01:34.2]} 24. Rb2 {[%clk 0:01:52]}
24... Rg7 {[%clk 0:01:20.5]} 25. Rfb1 {[%clk 0:01:49.4]} 25... g4 {[%clk
0:01:06.8]} 26. fxg4 {[%clk 0:01:45.5]} 26... hxg4 {[%clk 0:01:06.7]} 27. hxg4
{[%clk 0:01:45.9]} 27... Kg5 {[%clk 0:01:04.6]} 28. Qd2 {[%clk 0:01:33.2]} 28...
Bd7 {[%clk 0:01:03.7]} 29. Rb7 {[%clk 0:01:25]} 29... Rf8 {[%clk 0:01:02.9]} 30.
Rxa7 {[%clk 0:01:19.6]} 30... Qe8 {[%clk 0:00:54.4]} 31. Rbb7 {[%clk 0:01:18.7]}
31... Rff7 {[%clk 0:00:54.1]} 32. g3 {[%clk 0:01:12.8]} 32... Kg6 {[%clk
0:00:30.9]} 33. gxf4 {[%clk 0:01:09.5]} 33... Kh7 {[%clk 0:00:30.1]} 34. Bf3
{[%clk 0:01:06.7]} 34... Kg8 {[%clk 0:00:20.6]} 35. Rc7 {[%clk 0:00:55.1]} 35...
Qd8 {[%clk 0:00:20.4]} 36. g5 {[%clk 0:00:50]} 36... Qb8 {[%clk 0:00:10.4]} 37.
Rab7 {[%clk 0:00:49.2]} 37... Qa8 {[%clk 0:00:10.7]} 38. a7 {[%clk 0:00:49.6]}
38... Be8 {[%clk 0:00:05.8]} 39. Rb8 {[%clk 0:00:45.5]} 39... Qxa7 {[%clk
0:00:05.1]} 40. Rxa7 {[%clk 0:00:41.9]} 40... Rxa7 {[%clk 0:00:06]} 41. Rxe8+
{[%clk 0:00:42.3]} 41... Kf7 {[%clk 0:00:06.7]} 42. Bh5+ {[%clk 0:00:41.3]}
42... Rg6 {[%clk 0:00:07]} 43. Bxg6+ {[%clk 0:00:41.7]} 43... Kg7 {[%clk
0:00:07.5]} 44. Rxe6 {[%clk 0:00:39.7]} 44... Ra1+ {[%clk 0:00:06.3]} 45. Kg2
{[%clk 0:00:39.6]} 45... Kf8 {[%clk 0:00:06]} 46. Qb2 {[%clk 0:00:36.3]} 46...
Ra8 {[%clk 0:00:04.4]} 47. Rf6+ {[%clk 0:00:32.8]} 47... Kg8 {[%clk 0:00:02.4]}
48. Bf5 {[%clk 0:00:25.5]} 48... Kg7 {[%clk 0:00:02]} 49. Qb7+ {[%clk
0:00:24.8]} 49... Kg8 {[%clk 0:00:02]} 50. Qh7# {[%clk 0:00:25]} 1-0

[Event "Late-Titled-Tuesday-Blitz-March-26-2024"]
[Site "Chess.com"]
[Date "2024.03.26"]
[Round "9"]
[White "carloseduar100"]
[Black "David_ATM"]
[Result "0-1"]
[WhiteElo "2245"]
[BlackElo "2376"]
[TimeControl "180+1"]
[EndTime "15:45:02 PDT"]
[Termination "David_ATM won on time"]

1. g3 {[%clk 0:02:58.5]} 1... d5 {[%clk 0:03:00.1]} 2. Bg2 {[%clk 0:02:59.4]}
2... c6 {[%clk 0:03:01]} 3. Nf3 {[%clk 0:02:59.8]} 3... Nf6 {[%clk 0:03:01.6]}
4. O-O {[%clk 0:03:00.7]} 4... Bf5 {[%clk 0:03:01.6]} 5. d4 {[%clk 0:03:01.6]}
5... e6 {[%clk 0:03:01.9]} 6. c3 {[%clk 0:03:02]} 6... Nbd7 {[%clk 0:03:00.6]}
7. Nbd2 {[%clk 0:03:02.9]} 7... Ne4 {[%clk 0:03:00]} 8. Re1 {[%clk 0:03:03.8]}
8... h6 {[%clk 0:02:59.5]} 9. Ne5 {[%clk 0:03:02]} 9... Nxe5 {[%clk 0:02:47.7]}
10. Nxe4 {[%clk 0:02:56.7]} 10... dxe4 {[%clk 0:02:22.1]} 11. dxe5 {[%clk
0:02:54]} 11... Qxd1 {[%clk 0:02:23]} 12. Rxd1 {[%clk 0:02:54.2]} 12... Bc5
{[%clk 0:02:23.5]} 13. b4 {[%clk 0:02:53.1]} 13... Bb6 {[%clk 0:02:22.9]} 14. a4
{[%clk 0:02:53.2]} 14... Bc7 {[%clk 0:02:18.2]} 15. Rd4 {[%clk 0:02:19.1]} 15...
Bxe5 {[%clk 0:02:17.7]} 16. Rc4 {[%clk 0:02:19.6]} 16... Bg6 {[%clk 0:02:03.4]}
17. Bb2 {[%clk 0:02:09.4]} 17... f5 {[%clk 0:02:02.3]} 18. a5 {[%clk 0:01:53.3]}
18... a6 {[%clk 0:02:01]} 19. f4 {[%clk 0:01:46.7]} 19... Bf6 {[%clk 0:01:44.4]}
20. Kf2 {[%clk 0:01:34.3]} 20... Rd8 {[%clk 0:01:33.9]} 21. Bc1 {[%clk
0:01:29.5]} 21... Rd1 {[%clk 0:01:22.8]} 22. Bf1 {[%clk 0:01:23.4]} 22... O-O
{[%clk 0:01:16.1]} 23. e3 {[%clk 0:01:19.8]} 23... Bh5 {[%clk 0:01:04.5]} 24. h3
{[%clk 0:01:18.6]} 24... Bf3 {[%clk 0:01:03.5]} 25. Rb1 {[%clk 0:00:58.1]} 25...
Rfd8 {[%clk 0:01:01.8]} 26. Rd4 {[%clk 0:00:53.6]} 26... Bxd4 {[%clk 0:00:54.2]}
27. cxd4 {[%clk 0:00:53.9]} 27... Kf7 {[%clk 0:00:44]} 28. Ra1 {[%clk
0:00:30.2]} 28... g5 {[%clk 0:00:43.7]} 29. Rb1 {[%clk 0:00:23.3]} 29... Rg8
{[%clk 0:00:41.3]} 30. Ra1 {[%clk 0:00:11.8]} 30... h5 {[%clk 0:00:32]} 31. Rb1
{[%clk 0:00:11.7]} 31... h4 {[%clk 0:00:30.1]} 32. fxg5 {[%clk 0:00:09.5]} 32...
hxg3+ {[%clk 0:00:28.5]} 33. Kxg3 {[%clk 0:00:09.9]} 33... Rxf1 {[%clk
0:00:27.3]} 34. h4 {[%clk 0:00:10.3]} 34... Rh8 {[%clk 0:00:23.6]} 35. Ra1
{[%clk 0:00:06.4]} 35... Rg1+ {[%clk 0:00:23.5]} 36. Kf4 {[%clk 0:00:06.6]}
36... Rxh4+ {[%clk 0:00:19.8]} 37. Ke5 {[%clk 0:00:07.5]} 37... Rhh1 {[%clk
0:00:20.3]} 38. Ra2 {[%clk 0:00:05.4]} 38... Rxc1 {[%clk 0:00:19.5]} 39. b5
{[%clk 0:00:05.5]} 39... cxb5 {[%clk 0:00:13.6]} 40. g6+ {[%clk 0:00:05.7]}
40... Kxg6 {[%clk 0:00:13.4]} 41. Rb2 {[%clk 0:00:05.5]} 41... Kf7 {[%clk
0:00:13]} 42. Rb4 {[%clk 0:00:03.9]} 42... Ke7 {[%clk 0:00:13.1]} 43. d5 {[%clk
0:00:03.3]} 43... Rc5 {[%clk 0:00:12.4]} 0-1